Cogmind - Beta 15 @@@ ROGUE MODE // 2025.10.07 @ 19:49:57 Player: Amberulez Result: Self-destructed Performance ------------- Evolutions (1) 500 Regions Visited (3) 600 Robots Destroyed (33) 165 Value Destroyed (853) 853 Prototype IDs (3) 60 Alien Tech Used (0) 0 Bonus (145) 145 TOTAL SCORE: 2323 Bonus ------- Follower Combat Kills 145 Cogmind --------- Core Integrity 353/400 Matter 259/300 Energy 240/240 System Corruption 0% Temperature Cool (0) Movement Treading (160) Location -9/Materials Parts ------- > --- POWER (1) -------- Nuclear Core > --- PROPULSION (2) --- Light Treads Light Treads > --- UTILITY (4) ------ Scrap Suit Large Storage Unit > --- WEAPON (2) ------- Improved Light Cannon Battle Cannon > --- INVENTORY (15) --- Light Angular Momentum Engine Light Treads Light Treads Improved Hover Unit Improved Hover Unit Improved Hover Unit Improved Hover Unit Medium Storage Unit Compact Matter Pod (65) Experimental Sensor Array Advanced Targeting Computer Light Armor Plating Autogun Mini Grenade Launcher Great Maul Peak State ------------ > --- POWER ------------ Light Nuclear Core > --- PROPULSION ------- Light Treads Light Treads > --- UTILITY ---------- Scrap Suit Large Storage Unit Experimental Sensor Array > --- WEAPON ----------- Improved Light Cannon Battle Cannon > --- INVENTORY -------- Light Nuclear Core Light Angular Momentum Engine Light Treads Light Treads Improved Hover Unit Improved Hover Unit Improved Hover Unit Improved Hover Unit Medium Storage Unit Advanced Targeting Computer Advanced Targeting Computer Assault Rifle Assault Rifle Assault Rifle Great Maul [Rating: 30] Favorites ----------- Power Ion Engine Engine Ion Engine Power Core Light Nuclear Core Propulsion Light Treads Treads Light Treads Utility Large Storage Unit Device Scrap Suit Storage Large Storage Unit Protection Utility Shielding Weapon Light Assault Rifle Energy Gun Medium Laser Ballistic Gun Light Assault Rifle Ballistic Cannon Battle Cannon Slashing Weapon Mining Claw Build | -11 -10 -10 -9 ------- Run | Yrd Mat Min Mat Slots Evolved 2 | . . . 2 Power . | . . . . Propulsion . | . . . . Utility 2 | . . . 2 Weapon . | . . . . Parts Attached 25 | 8 6 6 5 Power 4 | 1 . 1 2 Engine 2 | 1 . . 1 Core 2 | . . 1 1 Reactor . | . . . . Propulsion 3 | 2 1 . . Treads 3 | 2 1 . . Leg . | . . . . Wheel . | . . . . Hover . | . . . . Flight . | . . . . Utility 9 | 2 3 2 2 Device 3 | 1 . 1 1 Storage 3 | 1 2 . . Processor . | . . . . Hackware . | . . . . Protection 3 | . 1 1 1 Artifact . | . . . . Weapon 9 | 3 2 3 1 Energy Gun 2 | 2 . . . Energy Cannon . | . . . . Ballistic Gun 4 | 1 2 1 . Ballistic Cannon 2 | . . 1 1 Launcher . | . . . . Special Weapon . | . . . . Impact Weapon . | . . . . Slashing Weapon 1 | . . 1 . Piercing Weapon . | . . . . Special Melee Weapon . | . . . . Unidentified Prototypes 1 | . . 1 . Parts Lost . | . . . . Power . | . . . . Propulsion . | . . . . Utility . | . . . . Weapon . | . . . . Highest Loss Streak . | . . . . To Critical Strikes . | . . . . Average Backups 13 | 4 10 14 14 Power 1 | . 1 1 1 Propulsion 5 | 2 4 4 5 Utility 3 | . 1 3 3 Weapon 3 | . 1 4 3 Tool/Special . | . . . . Unused Backups 25 | . 4 4 17 Power 2 | . . 1 1 Propulsion 12 | . 4 1 7 Utility 6 | . . 1 5 Weapon 5 | . . 1 4 Tool/Special . | . . . . Average Slot Usage (%) 96 | . 100 99 84 Engine 7 | . 14 8 . Core 5 | . . 5 11 Treads 26 | . 28 28 22 Device 6 | . 10 1 16 Storage 13 | . 14 14 11 Protection 8 | . 3 12 2 Energy Gun 2 | . 10 . . Ballistic Gun 13 | . 17 16 . Ballistic Cannon 6 | . . 3 21 Slashing Weapon 4 | . . 8 . Peak Build Rating 30 | 9 10 20 30 Average Rating 13 | 5 9 10 25 On Entrance 9 | . 9 8 20 Naked Turns . | . . . . Heaviest Build 41 | 14 29 33 41 Greatest Support 40 | 40 40 40 40 Greatest Overweight (x) 1 | . . . 1 Average Overweight (x) . | . . . . Largest Inventory Capacity 15 | 8 15 15 15 Average Capacity 14 | 7 11 15 15 Most Carried 15 | 6 15 15 15 Average Carried 13 | 4 10 14 14 Final Capacity 15 | 8 15 15 15 Final Carried 15 | 6 15 15 15 Class Distribution -------------------- 100% | Mutant Dominant Class ---------------- Mutant | -10/Materials Mutant | -10/Mines Mutant | -9/Materials Resources | -11 -10 -10 -9 ----------- Run | Yrd Mat Min Mat Matter Collected 976 | 242 141 229 364 Remotely . | . . . . Salvage Created 1164 | 78 378 146 562 Parts 69 | 5 19 9 36 Haulers Intercepted 5 | . 2 . 3 Recyclers Shooed . | . . . . Parts Field Recycled . | . . . . Retrieved Matter . | . . . . Parts Self-Destructed . | . . . . Prevented . | . . . . Kills | -11 -10 -10 -9 ------- Run | Yrd Mat Min Mat Combat Hostiles Destroyed 22 | . 7 3 12 Guns 10 | . 7 3 . Cannons 12 | . . . 12 Classes Destroyed 8 | 2 4 1 1 Worker 1 | . . . 1 Tunneler 1 | 1 . . . Hauler 5 | . 2 . 3 Recycler 1 | 1 . . . Watcher 3 | . 2 . 1 Swarmer 3 | . 3 . . Grunt 13 | . 4 2 7 Sentry 6 | . . 1 5 Best Kill Streak 7 | 2 2 2 7 Combat Bots Only 4 | . 2 2 4 Max Kills in Single Turn 1 | 1 1 1 1 Gunslinging . | . . . . Exploded . | . . . . Melee . | . . . . Uniques/NPCs Destroyed . | . . . . Combat | -11 -10 -10 -9 -------- Run | Yrd Mat Min Mat Hostile Shots Fired 69 | . 26 24 19 Missed 14 | . 5 5 4 Hits 55 | . 21 19 15 Projectile 55 | . 21 19 15 Damage Taken 729 | . 253 266 210 Core 128 | . 26 55 47 Absorbed by Shields . | . . . . Redirected to Shielding 5 | . . 5 . Regen/Repaired (Parts) 56 | . . . 56 Core Remaining (%) 83 | 100 . 67 . Volleys Fired 83 | 2 37 12 32 Largest 2 | 2 2 2 2 Hottest 70 | 60 70 40 66 Shots Fired 166 | 4 74 24 64 Gun 102 | 4 74 24 . Cannon 64 | . . . 64 Launcher . | . . . . Special . | . . . . Kinetic 130 | 2 40 24 64 Thermal 36 | 2 34 . . Explosive . | . . . . Electromagnetic . | . . . . Robot Hit Streak 14 | 1 10 14 14 Robot Miss Streak 3 | 2 3 2 3 Penetration Max . | . . . . Secondary Targets . | . . . . Shots Hit Robots 103 | 2 47 20 34 Core Hits 47 | 2 19 9 17 Critical Kills . | . . . . Critical Parts Destroyed . | . . . . Critical Strikes 3 | . 1 . 2 Burn 1 | . 1 . . Blast 2 | . . . 2 Melee Attacks 1 | . . 1 . Impact . | . . . . Slashing 1 | . . 1 . Piercing . | . . . . Sneak Attacks . | . . . . Combat Hostiles . | . . . . Follow-up Attacks . | . . . . Damage Inflicted 1679 | 40 608 241 790 Guns 880 | 40 607 233 . Cannons 783 | . . . 783 Explosions . | . . . . Melee . | . . . . Ramming 16 | . 1 8 7 Kinetic 1372 | 30 326 233 783 Thermal 291 | 10 281 . . Explosive . | . . . . Electromagnetic . | . . . . Impact . | . . . . Slashing . | . . . . Piercing . | . . . . Highest Corruption . | . . . . Average Corruption . | . . . . Corruption Purged . | . . . . Corruption Blocked . | . . . . Overload Shots . | . . . . Overflow Damage . | . . . . Projectiles . | . . . . Explosions . | . . . . Melee . | . . . . Knockbacks 2 | . . . 2 Impact . | . . . . Kinetic 2 | . . . 2 Secondary . | . . . . Self-Inflicted Damage . | . . . . Shots . | . . . . Rammed 6 | . 2 2 2 Targets Rammed 6 | . 2 2 2 Kicked . | . . . . Crushed . | . . . . Highest Temperature 99 | . 99 40 36 Average Temperature 18 | . 29 12 6 Received Heat Transfer 315 | . 123 132 60 Siege Activations . | . . . . Martial Activations . | . . . . Shielding Activations . | . . . . Robots Disrupted . | . . . . Combat Hostiles . | . . . . Robots Corrupted . | . . . . Combat Hostiles . | . . . . Parts Fried . | . . . . Impact Corruptions . | . . . . Robots Melted . | . . . . Combat Hostiles . | . . . . Parts Melted . | . . . . Heat Transferred 913 | 25 888 . . Parts Sabotaged . | . . . . Parts Stolen . | . . . . Parts Stripped . | . . . . Power Chain Reactions . | . . . . Alert | -11 -10 -10 -9 ------- Run | Yrd Mat Min Mat Maximum Alert Level . | . . . . Low Security (%) 100 | 100 100 100 100 Level 1 . | . . . . Level 2 . | . . . . Level 3 . | . . . . Level 4 . | . . . . Level 5 . | . . . . High Security . | . . . . Max Security . | . . . . Peak Influence 176 | 10 71 90 176 Initial 29 | . . . 29 Average 26 | . 12 13 73 Influence Increases 935 | 10 206 167 552 Destroy 0b10 Robot/C 620 | . 140 120 360 Destroy 0b10 Robot/NC 65 | 10 20 . 35 Destroy Leader 158 | . 38 20 100 Allied During Kill 66 | . . 26 40 Successful Hack 15 | . 7 . 8 Destroy Structure 11 | . 1 1 9 Influence Decreases 859 | 10 206 91 552 Entered New Map 47 | . . . 47 Time Decay 712 | 10 206 91 405 Lost Ally 100 | . . . 100 Squads Dispatched 4 | . 1 . 3 Investigation 1 | . . . 1 Extermination . | . . . . Reinforcement 3 | . 1 . 2 Assault . | . . . . Garrison . | . . . . Intercept . | . . . . Searches Triggered . | . . . . Construction Impeded . | . . . . Haulers Reinforced . | . . . . Active Scanning Responses . | . . . . Cargo Convoy Interrupts . | . . . . Stealth | -11 -10 -10 -9 --------- Run | Yrd Mat Min Mat Distress Signals 7 | . 1 . 6 Communications Jammed . | . . . . Distress Signals . | . . . . Times Spotted 52 | . 15 6 31 Peak Tracking Total 6 | . 4 2 6 Tactical Retreats . | . . . . Traps | -11 -10 -10 -9 ------- Run | Yrd Mat Min Mat Traps Triggered 1 | . . . 1 Indirectly . | . . . . Trap Hack Attempts . | . . . . Triggered . | . . . . Disarmed . | . . . . Reprogrammed . | . . . . Reused . | . . . . Traps Extracted . | . . . . Installed . | . . . . Triggered . | . . . . Most Traps Carried 2 | . . 2 2 Machines | -11 -10 -10 -9 ---------- Run | Yrd Mat Min Mat Machines Disabled . | . . . . Max in Single Turn . | . . . . Machines Repaired . | . . . . Machines Dismantled . | . . . . Machines Sabotaged . | . . . . Overloaded Fab Kills . | . . . . Hacking | -11 -10 -10 -9 --------- Run | Yrd Mat Min Mat Machines Accessed 8 | . 4 . 4 Terminals 6 | . 2 . 4 Fabricators . | . . . . Repair Stations . | . . . . Recycling Units 2 | . 2 . . Scanalyzers . | . . . . Garrison Access . | . . . . Total Hacks 19 | . 11 . 8 Successful 7 | . 5 . 2 Failed 11 | . 5 . 6 Catastrophic . | . . . . Database Lockouts 1 | . 1 . . Manual 8 | . 2 . 6 Terminals 14 | . 6 . 8 Fabricators . | . . . . Repair Stations . | . . . . Recycling Units 5 | . 5 . . Scanalyzers . | . . . . Garrison Access . | . . . . Terminal Hacks 4 | . 2 . 2 Robot Analysis 1 | . 1 . . Prototype ID Bank 1 | . . . 1 Branch Access Points 1 | . . . 1 Patrol Status 1 | . 1 . . Fabricator Hacks . | . . . . Repair Station Hacks . | . . . . Recycling Unit Hacks 3 | . 3 . . Report Inventory 2 | . 2 . . Retrieve Components 1 | . 1 . . Scanalyzer . | . . . . Garrison Access Hacks . | . . . . Unauthorized Hacks . | . . . . Terminals . | . . . . Fabricators . | . . . . Repair Stations . | . . . . Recycling Units . | . . . . Scanalyzers . | . . . . Garrison Access . | . . . . Data Cores Recovered . | . . . . Used . | . . . . Hacking Detections 7 | . 3 . 4 Full Trace Events . | . . . . Feedback Events . | . . . . Feedback Blocked . | . . . . Robot Schematics Acquired . | . . . . Robots Built . | . . . . Authchips . | . . . . Time . | . . . . Total Robot Build Rating . | . . . . Part Schematics Acquired . | . . . . Parts Built . | . . . . Authchips . | . . . . Time . | . . . . Total Part Build Rating . | . . . . Parts Repaired . | . . . . Time . | . . . . Parts Recycled . | . . . . Recycled Matter . | . . . . Retrieved Matter . | . . . . Retrieved Components 9 | . 9 . . Parts Scanalyzed . | . . . . Part Schematics Acquired . | . . . . Parts Damaged . | . . . . Bothacking | -11 -10 -10 -9 ------------ Run | Yrd Mat Min Mat Used RIF Installer . | . . . . Robots Hacked . | . . . . Non-combat . | . . . . Combat . | . . . . Robot Hacks Applied . | . . . . Relay Couplers Released . | . . . . Fabnet Peak Effective % . | . . . . Robots Rewired . | . . . . Allies Hacked . | . . . . Hacks Repelled . | . . . . Allies | -11 -10 -10 -9 -------- Run | Yrd Mat Min Mat Total Allies 7 | . . 7 . Largest Group 6 | . . 6 6 Highest-Rated Group 116 | . . 116 116 Highest-Rated Ally 31 | . . 31 31 Total Orders . | . . . . Ally Attacks 42 | . . 14 28 Total Damage 525 | . . 189 336 Kills 12 | . . 3 9 Allies Corrupted . | . . . . Allies Melted . | . . . . Intel | -11 -10 -10 -9 ------- Run | Yrd Mat Min Mat Active Infowar (turns) 1767 | 24 791 371 581 Sensors 952 | . . 371 581 Terrain 815 | 24 791 . . Robot Analysis Total 1 | . 1 . . Derelict Logs Recovered 2 | . . 2 . Drone Launches . | . . . . Drone Recoveries . | . . . . Exploration | -11 -10 -10 -9 ------------- Run | Yrd Mat Min Mat Turns Passed 5432 | 148 1041 3061 1182 Spaces Moved 1958 | 79 543 734 602 Core 1 | 1 . . . Treads 1957 | 78 543 734 602 Legs . | . . . . Wheels . | . . . . Hover . | . . . . Flight . | . . . . Fastest Speed 50 | 50 160 160 160 Average Speed 160 | 158 160 160 162 Slowest Speed 240 | 160 160 160 240 Overloaded Moves . | . . . . Propulsion Burnouts . | . . . . Robots Hopped . | . . . . Potential Cave-ins . | . . . . Cave-ins Triggered . | . . . . Exploration Rate (%) 53 | 5 75 89 45 Regions Visited 3 Branch Regions 1 Pre-discovered Areas 1 | . . 1 . Known Exits Taken . | . . . . Unknown Exits Taken 3 | 1 1 1 . Scrap Searched 1 | . . 1 . Spaces Dug 1 | . . 1 . Terrain Destroyed 7 | . . 1 6 Melee 1 | . . 1 . Projectile 6 | . . . 6 AOE . | . . . . Terrain Rammed . | . . . . Walls Destroyed . | . . . . Machines Disabled . | . . . . Actions | -11 -10 -10 -9 --------- Run | Yrd Mat Min Mat Total 4082 | 94 645 2598 745 Wait 1931 | . 34 1827 70 Move 1955 | 78 542 733 602 Hop . | . . . . Pick Up 39 | 6 12 6 15 Fast Attach 13 | 7 2 3 1 Attach 1 | . . . 1 Detach 5 | . 2 1 2 Swap 13 | 1 5 3 4 Drop 35 | . 9 10 16 Fire 83 | 2 37 12 32 Melee 1 | . . 1 . Ram . | . . . . Kick . | . . . . Crush 6 | . 2 2 2 Escape Stasis . | . . . . Rewire . | . . . . Trap . | . . . . Miscellaneous . | . . . . Route ------- -11/Scrapyard -10/Materials (discovered 2 exits: *Mat / [*Min]) -10/Mines (discovered 2 exits: *Mat x2) -9/Materials (discovered 4 exits: [*Mat] / *Min x2 / *Sto) History --------- Turn | Location | Event 25 | -11/Scrapyard | Discovered new exit (range 15) 149 | -11/Scrapyard | Entered Materials 307 | -10/Materials | Build established: Mutant 506 | -10/Materials | Central database locked down 720 | -10/Materials | Discovered new exit (range 16) 1176 | -10/Materials | Discovered new exit (range 10) 1190 | -10/Materials | Entered Mines 1193 | -10/Mines | Received a Mining Laser from a helpful Derelict 1223 | -10/Mines | Met a Derelict bent on vengeance 3041 | -10/Mines | Learned Materials stockpile data 3041 | -10/Mines | Discovered new exit (range 11) 3072 | -10/Mines | Discovered new exit (range 15) 3254 | -10/Mines | Joined a pair of Derelicts in attacking an 0b10 outpost 3554 | -10/Mines | A weapon hastily lodged in a ceiling crevice suddenly fell to the ground 3596 | -10/Mines | Assisted by bots powering up and referring to "LRC-V3" 3663 | -10/Mines | Found a hidden stash of uninstalled traps 3748 | -10/Mines | Found a Scrap Suit stashed away for nefarious purposes 3752 | -10/Mines | Found Scrap Suit 3876 | -10/Mines | Found a damaged Exp. Sensor Array with a note attached 3880 | -10/Mines | Found Prototype Device 3880 | -10/Mines | Identified Exp. Sensor Array 3929 | -10/Mines | Escorted by a lone wolf Derelict 3949 | -10/Mines | Learned location of Storage (-9) 4251 | -10/Mines | Entered Materials 4251 | -9/Materials | Accompanied by 6 allies 4251 | -9/Materials | Evolved 2 slots: Utility x2 4252 | -9/Materials | Identified exit to Mines 4256 | -9/Materials | Led the pair of lost Derelicts to an unsafe place 4518 | -9/Materials | Lost 5 allies 5126 | -9/Materials | Discovered new exit (range 14) 5355 | -9/Materials | Discovered new exit (range 12) 5417 | -9/Materials | Identified exit to Storage 5433 | -9/Materials | Self-destructed Last Messages --------------- 05355_ R-06 Scavenger collects Sensor Array. 05355_ EXIT=FOUND 05395_ A-02 Transporter suffers critical hit (Blast). 05395_ A-02 Transporter destroyed. 05404_ Scrap Suit cannibalized Lgt. Treads to repair Lgt. Treads. 05413_ Acquired 49 matter. 05414_ Connecting with Terminal... >>Prototypes Downloading prototype IDs... Hvy. EM Shotgun Adv. EMP Blaster 05417_ Connecting with Terminal... >>Access(Branch) Found 3 branch access points: (50,49) Mines (23,23) Mines (79,75) Storage Map updated. Map ----- +----------------------------------------------------+ | ???????????????????????????????????? | | ???????????????????????????????????? | | ???????????????????????????????????? | | ???????????????????????????????????? | | ???????????????????????????????????? | | ???????????????????????????????????? | | ???????????????????????????????????? | | ???????????????????????????????????? | | ???????????????????????????????????? | | ???????????????????????????????????? | | ???????????????????????????????????? | | ???????????????????????????????????? | | ???????????????????????????????????? | | ???????????????????????????????????? | | ???????????????????????????????????? | | ???????????????????????????????????? | | ???????????????????????????????????? | | ???????????????????????????????????? | | ???????????????????????##+##???????? | | ???????????????????????# #???????? | | ???????????????????????# #???????? | | ???????????????????????# #???????? | | ???????????????????????# #?###???? | | #####???????###+###???## ## !##??? | | #???????# ##### = !#??? | | ######### =@= !#??? | | > T !#??? | | #########[ % !#??? | | #??????#; ##### !##??? | | ####??????########???##########???? | | #?????????????????????????????????? | | #?????????????????????????????????? | | ########?????##########???????????? | | #**[[!!#????## #???????????? | | #* [[ !#????# """ #???????????? | | #% [ #?????# """ #???????????? | | # ##?????# """ #???????????? | | #??????#= #???????????? | | ##### #??????# #???????????? | | #???# #??????# " " #???????????? | | +##### #??????# "R" #???????????? | | # #??????# """ #???????????? | | """ #[############"######?????????? | | "R + ! ! #?????????? | | """ ############# < #?????????? | | #???????????# #?????????? | | = #???????????#########?????????? | | ######?????????????????????????????? | | ???????????????????????????????????? | | ???????????????????????????????????? | +----------------------------------------------------+ Best States ------------- Heat Dissipation 28 Energy Generation 14 Energy Capacity 250 Matter Stores 300 Matter Capacity 300 Sight Range 16 Robot Scan Range 20 Terrain Scan Range 16 Terrain Scan Density 10 Armor Coverage 150 Utility Shielding 33 Evasion (%) 40 Recoil Reduction 2 Item Schematics ----------------- None Robot Schematics ------------------ None Fabricated ------------ Nothing Repaired ---------- Nothing Alien Tech Used ----------------- None Achievements -------------- None Challenges ------------ None Game ------ Seed CoordinationZioniteSuite Manual? 0 Play Time 00:36:52 Cumulative 64.6 hours Start 2025.06.21 @ 13:28:25 End 2025.10.07 @ 19:49:57 Sessions 3 Manual Loads 0 Difficulty Rogue Special Mode None Game No. 77 Rogue 77 Adventurer 0 Explorer 0 Win Type - Total 1 Types 1/0/0/0/0/0/0/0/0/0 Lore% 30 Gallery% 36 Achievement% 37 Wizard Run 0 Options --------- Layout 1 ASCII 0 Keyboard 0 Movement Arrows Keybinds 0 Fullscreen 1 Font 32/SmallcapsGlow Map View 50x35 Zoom Use 0% Tactical HUD 1 Map Filters NONE Filters NONE Steam 1 RUN: f3e9f5f1-53a9-4b7f-accc-2aebef6e08dc